{"text_format":"1","workbook":"xlsx","n_sheets":96,"sheets":["Plan","List20","RekonstrukceKotelnyMS","OpravaPlotuZŠ","RekonstrukceSportovnihoHriste","ProjektOdborneUcebny","StudieVyuzitiPalarny","ÚpravaTur.StezkyOcni","RekonstrukcePropustkuLibotin","OpravaPovrchuMistniKomunikace","OdstraneniChodnikuZaulici","Auto.SystemPark.Horecka","Prod.ChodnikuBariny","StetovanaCesHBasta","StetovanaCesBelohorska","OdkanalizovaniOcni","OdkanalizovaniDolni","ZatrubneniVodotece","OpravaStrechyZSStramberk","AutobusoveZastavky","OpravaChodnikuZOcNaTrub","sanaceVrchniCesta","AutobusZast.Bariny","VodovodKanalizaceLibotinII","OpravaKomunikaceNadrazni","CelkovaOpravaVezeTruba","Rozpracovanost","ZavlazovaniPrijezdovkaFot.Hris.","RevitalizaceZahradyMSZaulici","RevitalizaceZahradyMSBariny","RekonstrukceArealuKoupaliste","NoveSatnyZS","VstupZSSpojovaciChodba","OpravaPlotuZahradaZS","OpravaRozsireniHristePiskovna","SportovisteZahradaZS","RekonstrukceSport.HristeZS","OdbornaUcebnaZS","UpravaProstorRadnice","ZazemiTech.SluzebPiskovna","RekonstrukceStaraSkola","ObjektPalarna","VyuzitiRekonstrukceSkoly","RekonstrukceSuterenuTelecvicny","RekonstrukceDomuSluzeb","RekonstrukceMat.SkolyZaulici","RekonstrukceTech.Sluzeb","RekonstrukcePosty","KomunikaceKrizovatkaPalarna","RekonstrukceChodnikuNadrazni","ZastavbovaStudieParNovojicinska","ParkovaciPlochyProNavstevniky","OpravaProstorHasicarna","OpravaMostuBariny","SvetelnyPrechodBariny","BezpecnostChodcuKozina","PrutahMestem","StetovanaCestaBasta","KomunikaceHornychovice","OpravaChod.Kom.Drazne","VodovodKanalizaceLibotin","KamerovySystemNamestiZS","CelkovaRekonstrukceOsvetleni","VymenaMobiliareMesta","RevitalizaceNarodnihoSadu","RekonstrukceHrbitova","VenkovniNasvetleniTruby","RekonstrukceHistorickehoOsv.","OdkanalizovaniHraduTruba","RekonstrukcePristupuNaTrubu","UpravaProstoruNamesti","ElektronickaRezervaceTelocvicny","KomplexniPrezentaceSpolku","PravidlaRozdelovaniPrispevku","NickNackKelimky","KotlikoveDotace","InteraktivniMapa","VybudovaniKomposteru","EvidenceOdpadovychNadob","EstetizaceMistNaTridenyOdpad","ModerniPrezentace","PropagacniMaterialy","StrankyMICTrubyMuzeaKnihovny","BankomatNamesti","PanelyHorecka","PlanAkci","VyuzitiInterPrvku","ZajisteniExpo","PorizovaniVidei","PasportizaceMobiliare","VzhledDokumentu","FormPortalObcana","NovyWeb","OnlineSmlouvy","WebAplikace","ElektronickeHlasovani"],"not_rendered":{"charts":0,"images":0,"macros":1,"external_links":0,"defined_names":1,"comments":0,"pivot_tables":0},"unopened":[],"bounds":{"document_bytes":16777216,"sheet_cells":100000,"rows_first":2000,"rows_last":500,"rows_between":2000,"halvings":0,"cell_chars":16384,"cell_head_chars":4096},"cells_cut":0,"cells_raw":0,"read":"whole","date_system":"1900"}

{"sheet":"Plan","index":0,"n_rows":101,"n_cols":13,"rows_kept":101,"cut":false,"hidden":false,"merged":[[40,0,100,0],[25,0,30,1],[23,12,24,12],[1,11,2,11],[40,1,45,1],[79,1,88,1],[46,1,54,1],[38,11,39,11],[3,0,8,1],[11,7,11,10],[38,7,38,10],[38,0,39,2],[13,0,21,1],[90,1,100,1],[1,7,1,10],[0,0,0,12],[57,1,69,1],[38,12,39,12],[1,12,2,12],[34,0,36,1],[11,11,12,11],[1,0,2,2],[32,12,33,12],[23,7,23,10],[23,11,24,11],[23,0,24,2],[11,12,12,12],[32,0,33,2],[32,7,32,10],[32,11,33,11],[11,0,12,2]]}
["Akční plán města Štramberka pro období 2019-2022"]
["Úřad a radnice",null,null,null,null,null,null,"Orientační náklady v tis.Kč",null,null,null,"Externí spolufinancování - zdroj","Detaily"]
[null,null,null,"Garant","Termín zahájení","Termín ukončení","Stav rozpracovanosti",2019,2020,2021,2022]
[" Úřad a radnice",null,"elektronické hlasování v orgánech města - rada města, zastupitelstvo","starostka/tajemník","5/2019",null,"V realizaci",27,0,15,"x",null,"ZDE"]
[null,null,"on-line smlouvy na portálu občana - zveřejňování smluv (vyjma nájemních smluv na pronájem bytů) ","starostka/tajemník","6/2019",null,"Žádost o dotaci","x","x","x","x","dotace nebyla schválena","ZDE"]
[null,null,"rozšíření počtu on-line formulářů na portálu občana","starostka/tajemník","6/2019",null,"V realizaci","x","x",42,"x","dotace nebyla schválena","ZDE"]
[null,null,"mobilní a webová aplikace - hlášení nedostatků ","starostka/tajemník","12/2019",null,"Dokončeno","x",8,null,null,null,"ZDE"]
[null,null,"nové webové stránky města (www.stramberk.cz)","starostka/tajemník, CR","2/2019","10/2019","Dokončeno",108,null,null,null,null,"ZDE"]
[null,null,"jednotný vzhled dokumentů města a městského úřadu - šablony dle upraveného grafického manuálu (včetně razítek, vizitek, inf.tabulí)","starostka/tajemník","4/2019","11/2020","Dokončeno",10,50,null,null,null,"ZDE"]
[null,null,"pasportizace mobiliáře, veřejného osvětlení, komunikací a chodníků, zeleně, dopr. značení, hřbitova, památek, odpadového hospodářství","mistostarosta/tajemnik","6/2019",null,"Záměr",null,null,92,"1082+300","dotace nebyla schválena","ZDE"]
[]
["Kultura a cestovní ruch",null,null,null,null,null,null,"Orientační náklady v tis.Kč",null,null,null,"Externí spolufinancování - zdroj","Detaily"]
[null,null,null,"Garant ","Termín zahájení","Termín ukončení","Stav rozpracovanosti",2019,2020,2021,2022]
["Kultura a cestovní ruch",null,"pořizování videozáznamů z kulturních akcí a následná prezentace na webových stránkách města","starostka/OKSVCR","2/2019",null,"Probíhá","x","x","x","x",null,"ZDE"]
[null,null,"zajištění proměnné expozice k historii města ","starostka/OKSVCR","8/2019",null,"Probíhá",55,35,null,null,null,"ZDE"]
[null,null,"využití interaktivních prvků ve výstavnictví","starostka/OKSVCR","1/2021",null,"Záměr","x","x","x",50,null,"ZDE"]
[null,null,"plán akcí - rozvoj úspěšných a tradičních, rozšíření o nové ","starostka/OKSVCR","10/2019",null,"V realizaci",null,null,null,null,null,"ZDE"]
[null,null,"pořízení informativního panelu na parkoviště na Horečce - informace pro turisty","starostka/OKSVCR","2/2020",null,"Záměr",null,null,null,125,null,"ZDE"]
[null,null,"zajištění bankomatu na náměstí nebo v těsné blízkosti","starostka/místostarosta","9/2019","10/2022","Projektová dokumentace",null,null,null,null,null,"ZDE"]
[null,null,"nové webové stránky MIC, Trúby, Muzea Zdeňka Buriana a Městské knihovny","starostka/OKSVCR","4/2019","4/2020","Dokončeno",205,31,null,null,null,"ZDE"]
[null,null,"nové propagační předměty a materiály města","starostka/OKSVCR","1/2019",null,"V realizaci",145,150,150,150,null,"ZDE"]
[null,null,"moderní videoprezentace města","starostka/OKSVCR","9/2019","12/2019","Dokončeno",30,null,null,null,"MSK - 25,5 tis.","ZDE"]
[]
["Životní prostředí a odpadové hospodářství",null,null,null,null,null,null,"Orientační náklady v tis.Kč",null,null,null,"Externí spolufinancování - zdroj","Detaily"]
[null,null,null,"Garant","Termín zahájení","Termín ukončení","Stav rozpracovanosti",2019,2020,2021,2022]
["ŽP a odpady",null,"estetizace míst na tříděný odpad - zpevněná stání pro kontejnery","místostarosta/ŽP, investor",null,null,"Záměr",null,null,null,null,null,"ZDE"]
[null,null,"zavedení elektronické evidence odpadových nádob a jejich vývozů - opatřit všechy nádoby štítky čárových kódů","starostka/místostarosta/ŽP","3/2020",null,"Dokončeno",null,null,null,null,null,"ZDE"]
[null,null,"analýza možnosti vybudování kompostárny ","místostarosta/ŽP",null,null,"Záměr",null,null,null,null,null,"ZDE"]
[null,null,"interaktivní mapa všech stanovišť kontejnerů na odpady na webu města","starostka/ÚMT,ŽP","7/2019","10/2019","Dokončeno","x",null,null,null,null,"ZDE"]
[null,null,"kotlíkové dotace - zapojení se do programu - zprostředkování úvěrů občanům","místostarosta/ŽP",null,null,"Dokončeno",null,null,null,null,null,"ZDE"]
[null,null,"pořízení nick-nack kelímků s logem města pro veřejné akce pořádané městěm s cílem snížit objem odpadů z jednorázových kelímků","starostka","6/2019","9/2019","Dokončeno",28,null,null,null,null,"ZDE"]
[]
["Sport a volnočasové aktivity",null,null,null,null,null,null,"Orientační náklady v tis.Kč",null,null,null,"Externí spolufinancování - zdroj","Detaily"]
[null,null,null,"Garant ","Termín zahájení","Termín ukončení","Stav rozpracovanosti",2019,2020,2021,2022]
["Sport a voln. aktivity",null,"zpracování pravidel pro rozdělování finančních příspěvků spolkům a sport.klubům","starostka/OKSVCR","8/2019","4/2020","Dokončeno","x","x",null,null,null,"ZDE"]
[null,null,"komplexní prezentace spolků na webových stránkách města","starostka/OKSVCR","5/2019","10/2019","Dokončeno","x",null,null,null,null,"ZDE"]
[null,null,"elektronická rezervace prostor tělocvičny","starostka/OKSVCR","1/2020","9/2020","Dokončeno","x",15,null,null,null,"ZDE"]
[]
["Investice a opravy",null,null,null,null,null,null,"Orientační náklady v tis.Kč",null,null,null,"Externí spolufinancování - zdroj","Detaily"]
[null,null,null,"Garant ","Termín zahájení","Termín ukončení","Stav rozpracovanosti",2019,2020,2021,2022]
["Investice a opravy","Trúba","zpracování studie - úprava prostoru Náměstí - předlážení, doprava, zeleň","místostarosta",null,null,"Záměr",null,null,null,null,null,"ZDE"]
[null,null,"rekonstrukce přístupu na Trúbu z náměstí - oprava schodů a výměna zábradlí, vyčištění od náletů","místostarosta",null,null,"Záměr",null,null,null,null,null,"ZDE"]
[null,null,"celková oprava věže hradu Trúba - kamenné zdivo, dřevěné konstrukce, el. instalace ","místostarosta","3/2020","11/2020","Dokončeno",null,5100,250,null,null,"ZDE"]
[null,null,"odkanalizování areálu hradu Trúba - kanalizační přípojka","místostarosta","10/2017","4/2018","Projektová dokumentace",null,null,null,"2000?",null,"ZDE"]
[null,null,"nové venkovní nasvětlení hradu Trúba","místostarosta","4/2018","7/2018","Projektová dokumentace",null,null,null,null,null,"ZDE"]
[null,null,"celková rekonstrukce elektro rozvodů a  osvětlení ve věži Trúba","místostarosta","11/2019","12/2019","Dokončeno",1100,null,null,null,null,"ZDE"]
[null,"veřejné prostranství","rekonstrukce místního hřbitova","místostarosta","11/2019","11/2020","Dokončeno",null,10700,40,null,null,"ZDE"]
[null,null,"revitalizace Národního sadu ","místostarosta","5/2016","3/2017","Projektová dokumentace",null,null,null,100,null,"ZDE"]
[null,null,"výměna mobiliáře města - lavičky, odpadkové koše, vývěsní skříňky, plakátovací plochy","místostarosta","10/2019","11/2021","V realizaci",991,null,386,null,"MAS Lašsko","ZDE"]
[null,null,"celková rekonstrukce historického osvětlení ","místostarosta","8/2019","10/2021","V realizaci",965,0,0,300,null,"ZDE"]
[null,null,"kamerový systém - náměstí, u ZŠ","místostarosta",null,null,"Záměr",null,null,null,null,null,"ZDE"]
[null,null,"zatrubnění vodoteče - ul. Dolní","místostarosta","6/2019","05/2022","Projektová dokumentace",null,null,null,30,null,"ZDE"]
[null,null,"odkanalizování 4 RD na ulici Dolní","místostarosta","6/2019","05/2022","Projektová dokumentace",null,null,null,40,null,"ZDE"]
[null,null,"vodovod a kanalizace v lokalitě Libotín ","místostarosta","2/2019","12/2020","Dokončeno",33447,1800,null,null,"OPŽP - 14,2 mil.Kč","ZDE"]
[null,null,"vodovod a kanalizace v lokalitě Libotín - II. etapa - dokončení","místostarosta","3/2019","3/2021","V realizaci",null,null,790,null,null,"ZDE"]
[null,null,"odkanalizování lokality ulice K Očnímu","místostarosta","2/2021","6/2022","Projektová dokumentace",null,null,null,200,null,"ZDE"]
[null,null,"sanace svahu nad Vrchní cestou","místostarosta","9/2018","3/2019","Projektová dokumentace",null,null,null,null,null,"ZDE"]
[null,"komunikace, doprava a parkování","oprava místních komunikací a chodníků v lokalitě Drážné","místostarosta","10/2019","6/2020","Dokončeno",null,6000,null,null,"MMR - 1,1 mil.Kč","ZDE"]
[null,null,"oprava místní komunikace na Hornychovicích","místostarosta","7/2020","8/2020","Dokončeno",null,710,null,null,null,"ZDE"]
[null,null,"rekonstrukce štětované cesty Bělohorská","místostarosta","9/2020","11/2020","Dokončeno",null,1250,null,null,null,"ZDE"]
[null,null,"oprava štětované cesty - Horní Bašta","místostarosta","4/2019","5/2019","Dokončeno",250,null,null,null,null,"ZDE"]
[null,null,"dopravně stavební úpravy na průtahu městem","místostarosta","4/2020","5/2022","Projektová dokumentace",null,110,null,394,null,"ZDE"]
[null,null,"světelný přechod pro chodce na Bařinách","místostarosta","9/2020","10/2020","Dokončeno",null,2000,null,null,"MMR - 1,7 mil.Kč","ZDE"]
[null,null,"zvýšení bezpečnosti chodců na komunikaci „Polnička“ - Kozina","místostarosta","11/2021","05/2022","Projektová dokumentace",null,null,null,70,null,"ZDE"]
[null,null,"oprava mostu na Bařinách","místostarosta","7/2019","10/2019","Dokončeno",1650,null,null,null,null,"ZDE"]
[null,null,"rozšíření parkovacích ploch pro návštěvníky města","místostarosta","9/2019","10/2022","V realizaci",null,354,223,200,null,"ZDE"]
[null,null,"zpracování zástavbové studie s cílem vybudování parkoviště na ulici Novojičínské","místostarosta",null,null,"Záměr",null,null,null,null,null,"ZDE"]
[null,null,"oprava komunikace a kanalizace před  domy 803 – 808 na ulici Nádražní, včetně odvodnění","místostarosta","1/2021","10/2021","Dokončeno",null,null,1690,null,null,"ZDE"]
[null,null,"rekonstrukce chodníku na ulici Nádražní včetně řešení železničního přejezdu","místostarosta",null,null,"Záměr",null,null,null,null,null,"ZDE"]
[null,null,"úprava komunikace a křižovatky Pod Palárnou včetně chodníků a přechodů pro chodce","místostarosta",null,null,"Studie",null,null,null,null,null,"ZDE"]
[null,null,"prodloužení chodníků včetně úpravy autobusových zastávek podél silnice II/480 na Bařinách","místostarosta","1/2020","9/2020","Projektová dokumentace",null,68,null,null,"Žádost o dotaci","ZDE"]
[null,null,"automatický parkovací systém pro záchytné parkoviště Štramberk (Horečka)","místostarosta","1/2020","9/2020","Dokončeno",null,60,560,null,null,"ZDE"]
[null,null,"odstranění chodníku na ulici Zauličí naproti tělocvičny","místostarosta","9/2020","10/2021","Dokončeno",null,360,null,null,null,"ZDE"]
[null,null,"autobusové zastávky - obnova, vybudování (Bařiny)","místostarosta","6/2020","7/2020","Dokončeno",null,190,null,null,null,"ZDE"]
[null,null,"autobusové zastávky - obnova, vybudování (pod MÚ)","místostarosta","4/2020","4/2020","Dokončeno",null,null,490,null,null,"ZDE"]
[null,null,"oprava povrchu místní komunikace v průtahu městem","místostarosta","11/2020","05/2022","V realizaci",null,null,150,7500,"MMR","ZDE"]
[null,null,"rekonstrukce propustku na Libotíně (točna bus)","místostarosta","3/2020","11/2020","Projektová dokumentace",null,94,null,null,null,"ZDE"]
[null,null,"zvýšení bezpečnosti a komfortu pro potřeby chodců a cyklistů na ul. K Očnímu a vlastníků nemovitostí v této lokalitě","místostarosta",null,null,"Záměr"]
[null,null,"zpracování studie lokality K Očnímu v návaznosti na existující veřejné parkoviště a úpravu turistické stezky z tohoto parkoviště na Trúbu s možností vybudování cyklostezsky do Kopřivnice","místostarosta",null,null,"Záměr",null,null,null,null,null,"ZDE"]
[null,"domy v majetku města","rekonstrukce budovy pošty včetně kanalizace","místostarosta","5/2018","5/2019","Projektová dokumentace",null,null,null,"1500?",null,"ZDE"]
[null,null,"rekonstrukce budovy technických služeb - výměna oken, nová vrata, fasáda","místostarosta","03/2020",null,"V realizaci",null,null,null,null,null,"ZDE"]
[null,null,"rekonstrukce budovy Mateřské školy Zauličí ","místostarosta",null,null,"Záměr",null,null,null,200,null,"ZDE"]
[null,null,"rekonstrukce budovy Domu služeb","místostarosta",null,null,"Záměr",null,null,null,null,null,"ZDE"]
[null,null,"rekonstrukce suterénu Tělocvičny","místostarosta","10/2019","12/2019","Dokončeno",411,null,null,null,null,"ZDE"]
[null,null,"rekonstrukce budovy ZUŠ","místostarosta","5/2020","11/2020","Projektová dokumentace",null,292,null,null,null,"ZDE"]
[null,null,"studie využití objektu Palárny a přilehlých pozemků pro rozhodnutí o případné koupi","místostarosta","4/2019","11/2019","Dokončeno",89,null,null,null,null,"ZDE"]
[null,null,"rekonstrukce budovy Stará škola","místostarosta","8/2021","8/2022","V realizaci",null,496,7000,40000,"Žádost o dotaci","ZDE"]
[null,null,"zpracování studie pro vybudování areálu a zázemí pro technické služby na pozemcích v Pískovně","místostarosta","9/2020","11/2021","Studie",null,null,null,150,null,"ZDE"]
[null,null,"úprava prostor radnice - místnost starosty, místostarosty a sekretariátu","místostarosta","3/2019","8/2019","Studie",null,null,null,null,null,"ZDE"]
[null,null,"oprava střechy, krovu a říms ZŠ Štramberk","místostarosta","2/2017","9/2018","Žádost o dotaci",null,null,null,13600,"MMR","ZDE"]
[null,"školství, sport a volnočasové aktivity","projekt Odborné učebny ZŠ","místostarosta","4/2020","9/2020","Dokončeno",null,8300,null,null,"MMR - 7 mil.Kč","ZDE"]
[null,null,"rekonstrukce sportovního hřiště u ZŠ a vybudování sportoviště v zahradě ZŠ","místostarosta","4/2020","9/2020","Dokončeno",null,6700,null,null,"MMR - 2,8 mil.Kč","ZDE"]
[null,null,"rozšíření a oprava dětského hřiště v Pískovně","místostarosta","11/2019","6/2022","V realizaci",null,null,null,100,null,"ZDE"]
[null,null,"oprava plotu v zahradě ZŠ (cesta ke hřbitovu)","místostarosta","8/2019","11/2019","Dokončeno",1340,null,null,null,null,"ZDE"]
[null,null,"vybudování nového vstupu do ZŠ pro žáky (přes spojovací chodbu)","místostarosta","8/2020","9/2020","Dokončeno",null,450,null,null,null,"ZDE"]
[null,null,"nové šatny v ZŠ - samostatné uzamykatelné skříňky","místostarosta",null,null,"Záměr",null,null,null,700,"z prostředků ZŠ (RF)","ZDE"]
[null,null,"rekonstrukce kotelny v budově MŠ Zauličí včetně rozvodů","místostarosta","1/2021","4/2021","Dokončeno",null,null,600,null,null,"ZDE"]
[null,null,"rekonstrukce areálu koupaliště","místostarosta","2/2021","5/2022","V realizaci",null,null,5875,5200,null,"ZDE"]
[null,null,"revitalizace zahrady Mateřské školy Bařiny včetně doplnění herních prvků","starosta/místostarosta","1/2021","3/2021","Projektová dokumentace",null,null,null,null,null,"ZDE"]
[null,null,"revitalizace zahrady Mateřské školy Zauličí včetně doplnění herních prvků","starosta/místostarosta","9/2018",null,"V realizaci",null,null,764,null,"194 tis. Kč z RF ZŠ, 178 tis.z daru Innogy a 92 tis.Kč město, 300 tis.Kč z daru Cemix","ZDE"]
[null,null,"zavlažování fotbalového hřiště, oprava příjezdové komunikace","místostarosta",null,"06/2022","V realizaci",null,null,null,null,null,"ZDE"]

{"sheet":"List20","index":1,"n_rows":0,"n_cols":0,"rows_kept":0,"cut":false,"hidden":true,"merged":[]}

{"sheet":"RekonstrukceKotelnyMS","index":2,"n_rows":4,"n_cols":8,"rows_kept":4,"cut":false,"hidden":true,"merged":[[0,0,0,7]]}
[{"$f":"UPPER(\"rekonstrukce kotelny v budově MŠ Zauličí včetně rozvodů\")","v":"REKONSTRUKCE KOTELNY V BUDOVĚ MŠ ZAULIČÍ VČETNĚ ROZVODŮ"}]
[null,null,null,null,null,null,null,"Zpět na seznam akčního plánu"]
["Datum","Popis průběhu"]
["2020-12-01","PD se zpracovává"]

{"sheet":"OpravaPlotuZŠ","index":3,"n_rows":4,"n_cols":8,"rows_kept":4,"cut":false,"hidden":true,"merged":[[0,0,0,7]]}
[{"$f":"UPPER(\"oprava plotu v zahradě ZŠ (cesta ke hřbitovu)\")","v":"OPRAVA PLOTU V ZAHRADĚ ZŠ (CESTA KE HŘBITOVU)"}]
[null,null,null,null,null,null,null,"Zpět na seznam akčního plánu"]
["Datum","Popis průběhu"]
["2019-11-01","Akce doknčena"]

{"sheet":"RekonstrukceSportovnihoHriste","index":4,"n_rows":4,"n_cols":8,"rows_kept":4,"cut":false,"hidden":true,"merged":[[0,0,0,7]]}
[{"$f":"UPPER(\"rekonstrukce sportovního hřiště u ZŠ a vybudování sportoviště v zahradě ZŠ\")","v":"REKONSTRUKCE SPORTOVNÍHO HŘIŠTĚ U ZŠ A VYBUDOVÁNÍ SPORTOVIŠTĚ V ZAHRADĚ ZŠ"}]
[null,null,null,null,null,null,null,"Zpět na seznam akčního plánu"]
["Datum","Popis průběhu"]
["2020-10-01","Akce doknčena"]

{"sheet":"ProjektOdborneUcebny","index":5,"n_rows":4,"n_cols":8,"rows_kept":4,"cut":false,"hidden":true,"merged":[[0,0,0,7]]}
[{"$f":"UPPER(\"projekt Odborné učebny ZŠ\")","v":"PROJEKT ODBORNÉ UČEBNY ZŠ"}]
[null,null,null,null,null,null,null,"Zpět na seznam akčního plánu"]
["Datum","Popis průběhu"]
["2020-10-01","Akce doknčena"]

{"sheet":"StudieVyuzitiPalarny","index":6,"n_rows":4,"n_cols":8,"rows_kept":4,"cut":false,"hidden":true,"merged":[[0,0,0,7]]}
["STUDIE VYUŽITÍ OBJEKTU PALÁRNA A PŘILEHLÝCH POZEMKŮ PRO ROZHODNUTÍ O PŘÍPADNÉ KOUPI"]
[null,null,null,null,null,null,null,"Zpět na seznam akčního plánu"]
["Datum","Popis průběhu"]
["2019-06-01","Akce ukončena"]

{"sheet":"ÚpravaTur.StezkyOcni","index":7,"n_rows":3,"n_cols":8,"rows_kept":3,"cut":false,"hidden":true,"merged":[[0,0,0,7]]}
[{"$f":"UPPER(\"úprava turistické stezky na Trúbu z parkoviště u Očního\")","v":"ÚPRAVA TURISTICKÉ STEZKY NA TRÚBU Z PARKOVIŠTĚ U OČNÍHO"}]
[null,null,null,null,null,null,null,"Zpět na seznam akčního plánu"]
["Datum","Popis průběhu"]

{"sheet":"RekonstrukcePropustkuLibotin","index":8,"n_rows":4,"n_cols":8,"rows_kept":4,"cut":false,"hidden":true,"merged":[[0,0,0,7]]}
[{"$f":"UPPER(\"rekonstrukce propustku na Libotíně (točna bus)\")","v":"REKONSTRUKCE PROPUSTKU NA LIBOTÍNĚ (TOČNA BUS)"}]
[null,null,null,null,null,null,null,"Zpět na seznam akčního plánu"]
["Datum","Popis průběhu"]
["2020-10-01","PD je zpracována"]

{"sheet":"OpravaPovrchuMistniKomunikace","index":9,"n_rows":5,"n_cols":8,"rows_kept":5,"cut":false,"hidden":true,"merged":[[0,0,0,7],[3,1,3,6],[2,1,2,6],[4,1,4,6]]}
[{"$f":"UPPER(\"oprava povrchu místní komunikace v průtahu městem\")","v":"OPRAVA POVRCHU MÍSTNÍ KOMUNIKACE V PRŮTAHU MĚSTEM"}]
[null,null,null,null,null,null,null,"Zpět na seznam akčního plánu"]
["Datum","Popis průběhu"]
["12/2020","PD zpracována, Podána žádost o dotaci"]
["12/2021","Dotace získána. Realizace 2022."]

{"sheet":"OdstraneniChodnikuZaulici","index":10,"n_rows":4,"n_cols":8,"rows_kept":4,"cut":false,"hidden":true,"merged":[[0,0,0,7]]}
[{"$f":"UPPER(\"odstranění chodníku na ulici Zauličí naproti tělocvičny\")","v":"ODSTRANĚNÍ CHODNÍKU NA ULICI ZAULIČÍ NAPROTI TĚLOCVIČNY"}]
[null,null,null,null,null,null,null,"Zpět na seznam akčního plánu"]
["Datum","Popis průběhu"]
["2020-11-01","Akce dokončena"]

{"sheet":"Auto.SystemPark.Horecka","index":11,"n_rows":5,"n_cols":8,"rows_kept":5,"cut":false,"hidden":true,"merged":[[0,0,0,7]]}
[{"$f":"UPPER(\"automatický parkovací systém pro záchytné parkoviště Štramberk (Horečka)\")","v":"AUTOMATICKÝ PARKOVACÍ SYSTÉM PRO ZÁCHYTNÉ PARKOVIŠTĚ ŠTRAMBERK (HOREČKA)"}]
[null,null,null,null,null,null,null,"Zpět na seznam akčního plánu"]
["Datum","Popis průběhu"]
["2020-10-01","DSP + DPS zpracována"]
["5/2021","dokončeno"]

{"sheet":"Prod.ChodnikuBariny","index":12,"n_rows":4,"n_cols":8,"rows_kept":4,"cut":false,"hidden":true,"merged":[[0,0,0,7],[3,1,3,6],[2,1,2,6]]}
[{"$f":"UPPER(\"prodloužení chodníků včetně úpravy autobusových zastávek podél silnice II/480 na Bařinách\")","v":"PRODLOUŽENÍ CHODNÍKŮ VČETNĚ ÚPRAVY AUTOBUSOVÝCH ZASTÁVEK PODÉL SILNICE II/480 NA BAŘINÁCH"}]
[null,null,null,null,null,null,null,"Zpět na seznam akčního plánu"]
["Datum","Popis průběhu"]
["11/2020","PD pro stavební povolení zpracována"]

{"sheet":"StetovanaCesHBasta","index":13,"n_rows":4,"n_cols":8,"rows_kept":4,"cut":false,"hidden":true,"merged":[[0,0,0,7]]}
[{"$f":"UPPER(\"oprava štětované cesty - Horní Bašta\")","v":"OPRAVA ŠTĚTOVANÉ CESTY - HORNÍ BAŠTA"}]
[null,null,null,null,null,null,null,"Zpět na seznam akčního plánu"]
["Datum","Popis průběhu"]
["2019-06-01","Akce dokončena"]

{"sheet":"StetovanaCesBelohorska","index":14,"n_rows":4,"n_cols":8,"rows_kept":4,"cut":false,"hidden":true,"merged":[[0,0,0,7]]}
[{"$f":"UPPER(\"rekonstrukce štětované cesta Bělohorská\")","v":"REKONSTRUKCE ŠTĚTOVANÉ CESTA BĚLOHORSKÁ"}]
[null,null,null,null,null,null,null,"Zpět na seznam akčního plánu"]
["Datum","Popis průběhu"]
["2020-11-01","Akce doknčena"]

{"sheet":"OdkanalizovaniOcni","index":15,"n_rows":4,"n_cols":8,"rows_kept":4,"cut":false,"hidden":true,"merged":[[0,0,0,7]]}
[{"$f":"UPPER(\"odkanalizování lokality ulice K Očnímu\")","v":"ODKANALIZOVÁNÍ LOKALITY ULICE K OČNÍMU"}]
[null,null,null,null,null,null,null,"Zpět na seznam akčního plánu"]
["Datum","Popis průběhu"]
["2020-12-01","PD z roku 2009"]

{"sheet":"OdkanalizovaniDolni","index":16,"n_rows":4,"n_cols":8,"rows_kept":4,"cut":false,"hidden":true,"merged":[[0,0,0,7]]}
[{"$f":"UPPER(\"odkanalizování 4 RD na ulici Dolní\")","v":"ODKANALIZOVÁNÍ 4 RD NA ULICI DOLNÍ"}]
[null,null,null,null,null,null,null,"Zpět na seznam akčního plánu"]
["Datum","Popis průběhu"]
["2020-12-01","PD se zpracovává"]

{"sheet":"ZatrubneniVodotece","index":17,"n_rows":4,"n_cols":8,"rows_kept":4,"cut":false,"hidden":true,"merged":[[0,0,0,7]]}
[{"$f":"UPPER(\"zatrubnění vodoteče - ul. Dolní\")","v":"ZATRUBNĚNÍ VODOTEČE - UL. DOLNÍ"}]
[null,null,null,null,null,null,null,"Zpět na seznam akčního plánu"]
["Datum","Popis průběhu"]
[2019,"PD zadána zpracovateli"]

{"sheet":"OpravaStrechyZSStramberk","index":18,"n_rows":5,"n_cols":8,"rows_kept":5,"cut":false,"hidden":true,"merged":[[0,0,0,7]]}
[{"$f":"UPPER(\"oprava střechy, krovu a říms ZŠ Štramberk\")","v":"OPRAVA STŘECHY, KROVU A ŘÍMS ZŠ ŠTRAMBERK"}]
[null,null,null,null,null,null,null,"Zpět na seznam akčního plánu"]
["Datum","Popis průběhu"]
["12/2020","zpracována PD"]
["2/2021","podána žádost o dotaci"]

{"sheet":"AutobusoveZastavky","index":19,"n_rows":3,"n_cols":8,"rows_kept":3,"cut":false,"hidden":true,"merged":[[0,0,0,7],[3,1,3,6],[2,1,2,6]]}
[{"$f":"UPPER(\"autobusové zastávky - obnova, vybudování (Bařiny, pod MÚ)\")","v":"AUTOBUSOVÉ ZASTÁVKY - OBNOVA, VYBUDOVÁNÍ (BAŘINY, POD MÚ)"}]
[null,null,null,null,null,null,null,"Zpět na seznam akčního plánu"]
["Datum","Popis průběhu"]

{"sheet":"OpravaChodnikuZOcNaTrub","index":20,"n_rows":3,"n_cols":8,"rows_kept":3,"cut":false,"hidden":true,"merged":[[0,0,0,7]]}
[{"$f":"UPPER(\"úprava chodníku na Trúbu z parkoviště u Očního\")","v":"ÚPRAVA CHODNÍKU NA TRÚBU Z PARKOVIŠTĚ U OČNÍHO"}]
[null,null,null,null,null,null,null,"Zpět na seznam akčního plánu"]
["Datum","Popis průběhu"]

{"sheet":"sanaceVrchniCesta","index":21,"n_rows":4,"n_cols":8,"rows_kept":4,"cut":false,"hidden":true,"merged":[[0,0,0,7]]}
[{"$f":"UPPER(\"sanace svahu nad Vrchní cestou\")","v":"SANACE SVAHU NAD VRCHNÍ CESTOU"}]
[null,null,null,null,null,null,null,"Zpět na seznam akčního plánu"]
["Datum","Popis průběhu"]
["2019-04-01","PD zpracována"]

{"sheet":"AutobusZast.Bariny","index":22,"n_rows":4,"n_cols":8,"rows_kept":4,"cut":false,"hidden":true,"merged":[[0,0,0,7]]}
[{"$f":"UPPER(\"autobusové zastávky - obnova, vybudování (Bařiny)\")","v":"AUTOBUSOVÉ ZASTÁVKY - OBNOVA, VYBUDOVÁNÍ (BAŘINY)"}]
[null,null,null,null,null,null,null,"Zpět na seznam akčního plánu"]
["Datum","Popis průběhu"]
["2020-06-01","akce doknčena"]

{"sheet":"VodovodKanalizaceLibotinII","index":23,"n_rows":5,"n_cols":8,"rows_kept":5,"cut":false,"hidden":true,"merged":[[0,0,0,7],[3,1,3,6],[4,1,4,6],[2,1,2,6]]}
[{"$f":"UPPER(\"vodovod a kanalizace v lokalitě Libotín - II. etapa - dokončení\")","v":"VODOVOD A KANALIZACE V LOKALITĚ LIBOTÍN - II. ETAPA - DOKONČENÍ"}]
[null,null,null,null,null,null,null,"Zpět na seznam akčního plánu"]
["Datum","Popis průběhu"]
["12/2020","PD zpracována"]
["5/2021","ukončeno zadácí řízení na dodavatele stavby"]

{"sheet":"OpravaKomunikaceNadrazni","index":24,"n_rows":6,"n_cols":8,"rows_kept":6,"cut":false,"hidden":true,"merged":[[0,0,0,10]]}
[{"$f":"UPPER(\"oprava komunikace před bytovými domy 803 – 808 a komunikace kolem garáží na ulici Nádražní, včetně odvodnění\")","v":"OPRAVA KOMUNIKACE PŘED BYTOVÝMI DOMY 803 – 808 A KOMUNIKACE KOLEM GARÁŽÍ NA ULICI NÁDRAŽNÍ, VČETNĚ ODVODNĚNÍ"}]
[null,null,null,null,null,null,null,"Zpět na seznam akčního plánu"]
["Datum","Popis průběhu"]
["12/2020","PD se zpracovává"]
["2021-06-04","realizace stavby dešťové kanalizace"]
[2022,"Oprava komunikace plánována po \"sednutí\" zeminy v roce 2022"]

{"sheet":"CelkovaOpravaVezeTruba","index":25,"n_rows":7,"n_cols":8,"rows_kept":7,"cut":false,"hidden":true,"merged":[[6,1,6,6],[0,0,0,7],[3,1,3,6],[2,1,2,6],[5,1,5,6],[4,1,4,6]]}
[{"$f":"UPPER(\"celková oprava věže hradu Trúba - kamenné zdivo,dřevěné konstrukce, el. Instalace\")","v":"CELKOVÁ OPRAVA VĚŽE HRADU TRÚBA - KAMENNÉ ZDIVO,DŘEVĚNÉ KONSTRUKCE, EL. INSTALACE"}]
[null,null,null,null,null,null,null,"Zpět na seznam akčního plánu"]
["Datum","Popis průběhu"]
["2019-11-27","Zpracována PD. Realizace zařazena do seznamu akcí na získání dotace na regeneraci MPR v roce 2020."]
["30.11.2020","Akce dokončena. "]
[2021,"Do roku 2022 přesunuta výměna poškozeného trámu ochozu"]
[2021,"na jaře doplněno horní nádvoří o nový kovaný výstupní turniket, mříž, zadní bránu a zábradlí (madla)"]

{"sheet":"Rozpracovanost","index":26,"n_rows":4,"n_cols":1,"rows_kept":4,"cut":false,"hidden":true,"merged":[]}
[]
["Schváleno"]
["Probíhá"]
["Dokončeno"]

{"sheet":"ZavlazovaniPrijezdovkaFot.Hris.","index":27,"n_rows":6,"n_cols":8,"rows_kept":6,"cut":false,"hidden":true,"merged":[[0,0,0,7],[3,1,3,6],[2,1,2,6],[4,1,4,6],[5,1,5,6]]}
[{"$f":"UPPER(\"zavlažování fotbalového hřiště, oprava příjezdové komunikace\")","v":"ZAVLAŽOVÁNÍ FOTBALOVÉHO HŘIŠTĚ, OPRAVA PŘÍJEZDOVÉ KOMUNIKACE"}]
[null,null,null,null,null,null,null,"Zpět na seznam akčního plánu"]
["Datum","Popis průběhu"]
[2020,"350 tis.Kč - zavlažovací zařízení (zahrnuto do rozpočtu)"]
["4/2020","vzhledem k ek.situace spojené s COVID-19 a poklesem sdílených daní přesunuto do roku 2021 (rozp.opatření č.1/2020)"]
["12/2021","vzhledem k ek.situace spojené s COVID-19 a poklesem sdílených daní akce pozastavena"]

{"sheet":"RevitalizaceZahradyMSZaulici","index":28,"n_rows":6,"n_cols":8,"rows_kept":6,"cut":false,"hidden":true,"merged":[[0,0,0,7]]}
[{"$f":"UPPER(\"revitalizace zahrady Mateřské školy Zauličí včetně doplnění herních prvků\")","v":"REVITALIZACE ZAHRADY MATEŘSKÉ ŠKOLY ZAULIČÍ VČETNĚ DOPLNĚNÍ HERNÍCH PRVKŮ"}]
[null,null,null,null,null,null,null,"Zpět na seznam akčního plánu"]
["Datum","Popis průběhu"]
["5/2020","PD zpracována"]
["6/2021","Realizace části projektu - herních prvků - pískoviště s domečkem z prostředků RF školy, domeček s malou skluzavkou z daru Innogy, loďka z prostředků města"]
["11/2021","Realizace 2. etapy - lanové prvky z daru firmy Cemix (300 tis.Kč + 14 tis.Kč z města)"]

{"sheet":"RevitalizaceZahradyMSBariny","index":29,"n_rows":5,"n_cols":8,"rows_kept":5,"cut":false,"hidden":true,"merged":[[0,0,0,7]]}
[{"$f":"UPPER(\"revitalizace zahrady Mateřské školy Bařiny včetně doplnění herních prvků\")","v":"REVITALIZACE ZAHRADY MATEŘSKÉ ŠKOLY BAŘINY VČETNĚ DOPLNĚNÍ HERNÍCH PRVKŮ"}]
[null,null,null,null,null,null,null,"Zpět na seznam akčního plánu"]
["Datum","Popis průběhu"]
["1905-07-10","Studie dokončena"]
["2021-01-01","zadána revize projektu"]

{"sheet":"RekonstrukceArealuKoupaliste","index":30,"n_rows":6,"n_cols":8,"rows_kept":6,"cut":false,"hidden":true,"merged":[[0,0,0,7],[3,1,3,6],[2,1,2,6]]}
[{"$f":"UPPER(\"rekonstrukce areálu koupaliště\")","v":"REKONSTRUKCE AREÁLU KOUPALIŠTĚ"}]
[null,null,null,null,null,null,null,"Zpět na seznam akčního plánu"]
["Datum","Popis průběhu"]
["2019-12-05","Vypracován STP a předán projektantovi"]
["2020-02-01","Zpracována PD pro realizaci stvby"]
["2021-04-01","ukončeno zadávací řízení  "]

{"sheet":"NoveSatnyZS","index":31,"n_rows":4,"n_cols":8,"rows_kept":4,"cut":false,"hidden":true,"merged":[[0,0,0,7],[3,1,3,6],[2,1,2,6]]}
[{"$f":"UPPER(\"nové šatny v ZŠ - samostatné uzamykatelné skříňky\")","v":"NOVÉ ŠATNY V ZŠ - SAMOSTATNÉ UZAMYKATELNÉ SKŘÍŇKY"}]
[null,null,null,null,null,null,null,"Zpět na seznam akčního plánu"]
["Datum","Popis průběhu"]
["6/2020","Finanční výbor doporučil financovat z rezervního fondu a fondu oprav ZŠ"]

{"sheet":"VstupZSSpojovaciChodba","index":32,"n_rows":4,"n_cols":8,"rows_kept":4,"cut":false,"hidden":true,"merged":[[0,0,0,7],[3,1,3,6],[2,1,2,6]]}
[{"$f":"UPPER(\"vybudování nového vstupu do ZŠ pro žáky (přes spojovací chodbu)\")","v":"VYBUDOVÁNÍ NOVÉHO VSTUPU DO ZŠ PRO ŽÁKY (PŘES SPOJOVACÍ CHODBU)"}]
[null,null,null,null,null,null,null,"Zpět na seznam akčního plánu"]
["Datum","Popis průběhu"]
["2020-09-01","Akce doknčena"]

{"sheet":"OpravaPlotuZahradaZS","index":33,"n_rows":3,"n_cols":8,"rows_kept":3,"cut":false,"hidden":true,"merged":[[0,0,0,7]]}
[{"$f":"UPPER(\"oprava plotu v zahradě ZŠ (cesta ke hřbitovu)\")","v":"OPRAVA PLOTU V ZAHRADĚ ZŠ (CESTA KE HŘBITOVU)"}]
[null,null,null,null,null,null,null,"Zpět na seznam akčního plánu"]
["Datum","Popis průběhu"]

{"sheet":"OpravaRozsireniHristePiskovna","index":34,"n_rows":5,"n_cols":8,"rows_kept":5,"cut":false,"hidden":true,"merged":[[0,0,0,7],[3,1,3,6],[2,1,2,6],[4,1,4,6]]}
[{"$f":"UPPER(\"rozšíření a oprava dětského hřiště v Pískovně\")","v":"ROZŠÍŘENÍ A OPRAVA DĚTSKÉHO HŘIŠTĚ V PÍSKOVNĚ"}]
[null,null,null,null,null,null,null,"Zpět na seznam akčního plánu"]
["Datum","Popis průběhu"]
["2019-12-05","Provedeno vyčistění pozmku od navezené deponie a srovnání plochy."]
["4/2020","vzhledem k ek.situaci spojené s COVID-19 a poklesu sdílených daní, přesunuto do roku 2021 (rozp.opatření č. 1/2020)"]

{"sheet":"SportovisteZahradaZS","index":35,"n_rows":3,"n_cols":8,"rows_kept":3,"cut":false,"hidden":true,"merged":[[0,0,0,7]]}
[{"$f":"UPPER(\"vybudování sportoviště v zahradě ZŠ\")","v":"VYBUDOVÁNÍ SPORTOVIŠTĚ V ZAHRADĚ ZŠ"}]
[null,null,null,null,null,null,null,"Zpět na seznam akčního plánu"]
["Datum","Popis průběhu"]

{"sheet":"RekonstrukceSport.HristeZS","index":36,"n_rows":3,"n_cols":8,"rows_kept":3,"cut":false,"hidden":true,"merged":[[0,0,0,7]]}
[{"$f":"UPPER(\"rekonstrukce sportovního hřiště u ZŠ\")","v":"REKONSTRUKCE SPORTOVNÍHO HŘIŠTĚ U ZŠ"}]
[null,null,null,null,null,null,null,"Zpět na seznam akčního plánu"]
["Datum","Popis průběhu"]

{"sheet":"OdbornaUcebnaZS","index":37,"n_rows":3,"n_cols":8,"rows_kept":3,"cut":false,"hidden":true,"merged":[[0,0,0,7]]}
[{"$f":"UPPER(\"projekt Odborné učebny ZŠ\")","v":"PROJEKT ODBORNÉ UČEBNY ZŠ"}]
[null,null,null,null,null,null,null,"Zpět na seznam akčního plánu"]
["Datum","Popis průběhu"]

{"sheet":"UpravaProstorRadnice","index":38,"n_rows":4,"n_cols":8,"rows_kept":4,"cut":false,"hidden":true,"merged":[[0,0,0,7]]}
[{"$f":"UPPER(\"úprava prostor radnice - místnost starosty, místostarosty a sekretariátu\")","v":"ÚPRAVA PROSTOR RADNICE - MÍSTNOST STAROSTY, MÍSTOSTAROSTY A SEKRETARIÁTU"}]
[null,null,null,null,null,null,null,"Zpět na seznam akčního plánu"]
["Datum","Popis průběhu"]
["2019-05-01","Zpracována studie"]

{"sheet":"ZazemiTech.SluzebPiskovna","index":39,"n_rows":4,"n_cols":8,"rows_kept":4,"cut":false,"hidden":true,"merged":[[0,0,0,7],[3,1,3,6],[2,1,2,6]]}
[{"$f":"UPPER(\"zpracování studie pro vybudování areálu a zázemí pro technické služby na pozemcích v Pískovně\")","v":"ZPRACOVÁNÍ STUDIE PRO VYBUDOVÁNÍ AREÁLU A ZÁZEMÍ PRO TECHNICKÉ SLUŽBY NA POZEMCÍCH V PÍSKOVNĚ"}]
[null,null,null,null,null,null,null,"Zpět na seznam akčního plánu"]
["Datum","Popis průběhu"]
["12/2020","Studie se zpracovává"]

{"sheet":"RekonstrukceStaraSkola","index":40,"n_rows":8,"n_cols":8,"rows_kept":8,"cut":false,"hidden":true,"merged":[[6,1,6,6],[7,1,7,6],[0,0,0,7],[2,1,2,6],[3,1,3,6],[4,1,4,6],[5,1,5,6]]}
[{"$f":"UPPER(\"zpracování projektové dokumentace na rekonstrukci budovy Staré školy (studie)\")","v":"ZPRACOVÁNÍ PROJEKTOVÉ DOKUMENTACE NA REKONSTRUKCI BUDOVY STARÉ ŠKOLY (STUDIE)"}]
[null,null,null,null,null,null,null,"Zpět na seznam akčního plánu"]
["Datum","Popis průběhu"]
["12/2019","schválena \"Studie\""]
["12/2020","PD zpracována"]
["21.12.2020","podána žádost o dotaci na Komunitní centrum"]
["5/2021","probíhá zadávací řízení na dodavatele stavby"]
["8/2021","zahájena rekonstrukce"]

{"sheet":"ObjektPalarna","index":41,"n_rows":3,"n_cols":8,"rows_kept":3,"cut":false,"hidden":true,"merged":[[0,0,0,7]]}
[{"$f":"UPPER(\"studie využití objektu Palárny a přilehlých pozemků pro rozhodnutí o případné koupi\")","v":"STUDIE VYUŽITÍ OBJEKTU PALÁRNY A PŘILEHLÝCH POZEMKŮ PRO ROZHODNUTÍ O PŘÍPADNÉ KOUPI"}]
[null,null,null,null,null,null,null,"Zpět na seznam akčního plánu"]
["Datum","Popis průběhu"]

{"sheet":"VyuzitiRekonstrukceSkoly","index":42,"n_rows":4,"n_cols":8,"rows_kept":4,"cut":false,"hidden":true,"merged":[[0,0,0,7],[3,1,3,6],[2,1,2,6]]}
[{"$f":"UPPER(\"studie využití a rekonstrukce budovy ZUŠ\")","v":"STUDIE VYUŽITÍ A REKONSTRUKCE BUDOVY ZUŠ"}]
[null,null,null,null,null,null,null,"Zpět na seznam akčního plánu"]
["Datum","Popis průběhu"]
["11/2020","PD zpracována"]

{"sheet":"RekonstrukceSuterenuTelecvicny","index":43,"n_rows":5,"n_cols":8,"rows_kept":5,"cut":false,"hidden":true,"merged":[[0,0,0,7],[3,1,3,6],[2,1,2,6],[4,1,4,6]]}
[{"$f":"UPPER(\"rekonstrukce suterénu Tělocvičny\")","v":"REKONSTRUKCE SUTERÉNU TĚLOCVIČNY"}]
[null,null,null,null,null,null,null,"Zpět na seznam akčního plánu"]
["Datum","Popis průběhu"]
[null,"Stavba před dokončením. 15. 12. 2019 -"]
["1/2020","Stavba dokončena"]

{"sheet":"RekonstrukceDomuSluzeb","index":44,"n_rows":3,"n_cols":8,"rows_kept":3,"cut":false,"hidden":true,"merged":[[0,0,0,7]]}
[{"$f":"UPPER(\"rekonstrukce budovy Domu služeb\")","v":"REKONSTRUKCE BUDOVY DOMU SLUŽEB"}]
[null,null,null,null,null,null,null,"Zpět na seznam akčního plánu"]
["Datum","Popis průběhu"]

{"sheet":"RekonstrukceMat.SkolyZaulici","index":45,"n_rows":3,"n_cols":8,"rows_kept":3,"cut":false,"hidden":true,"merged":[[0,0,0,7]]}
[{"$f":"UPPER(\"rekonstrukce budovy Mateřské školy Zauličí \")","v":"REKONSTRUKCE BUDOVY MATEŘSKÉ ŠKOLY ZAULIČÍ "}]
[null,null,null,null,null,null,null,"Zpět na seznam akčního plánu"]
["Datum","Popis průběhu"]

{"sheet":"RekonstrukceTech.Sluzeb","index":46,"n_rows":3,"n_cols":8,"rows_kept":3,"cut":false,"hidden":true,"merged":[[0,0,0,7]]}
[{"$f":"UPPER(\"rekonstrukce budovy technických služeb - výměna oken, nová vrata, fasáda\")","v":"REKONSTRUKCE BUDOVY TECHNICKÝCH SLUŽEB - VÝMĚNA OKEN, NOVÁ VRATA, FASÁDA"}]
[null,null,null,null,null,null,null,"Zpět na seznam akčního plánu"]
["Datum","Popis průběhu"]

{"sheet":"RekonstrukcePosty","index":47,"n_rows":5,"n_cols":8,"rows_kept":5,"cut":false,"hidden":true,"merged":[[0,0,0,7],[3,1,3,6],[4,1,4,6],[2,1,2,6]]}
[{"$f":"UPPER(\"rekonstrukce budovy pošty včetně kanalizace\")","v":"REKONSTRUKCE BUDOVY POŠTY VČETNĚ KANALIZACE"}]
[null,null,null,null,null,null,null,"Zpět na seznam akčního plánu"]
["Datum","Popis průběhu"]
["12/2020","PD je zpracována"]
["12/2021","V případě většího přebytku na konci roku 2021, možná realizace v 2022"]

{"sheet":"KomunikaceKrizovatkaPalarna","index":48,"n_rows":4,"n_cols":8,"rows_kept":4,"cut":false,"hidden":true,"merged":[[0,0,0,7]]}
[{"$f":"UPPER(\"úprava komunikace a křižovatky Pod Palárnou včetně chodníků a přechodů pro chodce\")","v":"ÚPRAVA KOMUNIKACE A KŘIŽOVATKY POD PALÁRNOU VČETNĚ CHODNÍKŮ A PŘECHODŮ PRO CHODCE"}]
[null,null,null,null,null,null,null,"Zpět na seznam akčního plánu"]
["Datum","Popis průběhu"]
["2018-10-01","Studie zpracována městem Kopřivnice"]

{"sheet":"RekonstrukceChodnikuNadrazni","index":49,"n_rows":3,"n_cols":8,"rows_kept":3,"cut":false,"hidden":true,"merged":[[0,0,0,7]]}
[{"$f":"UPPER(\"rekonstrukce chodníku na ulici Nádražní včetně řešení železničního přejezdu\")","v":"REKONSTRUKCE CHODNÍKU NA ULICI NÁDRAŽNÍ VČETNĚ ŘEŠENÍ ŽELEZNIČNÍHO PŘEJEZDU"}]
[null,null,null,null,null,null,null,"Zpět na seznam akčního plánu"]
["Datum","Popis průběhu"]

{"sheet":"ZastavbovaStudieParNovojicinska","index":50,"n_rows":3,"n_cols":8,"rows_kept":3,"cut":false,"hidden":true,"merged":[[0,0,0,7]]}
[{"$f":"UPPER(\"zpracování zástavbové studie s cílem vybudování parkoviště na ulici Novojičínské\")","v":"ZPRACOVÁNÍ ZÁSTAVBOVÉ STUDIE S CÍLEM VYBUDOVÁNÍ PARKOVIŠTĚ NA ULICI NOVOJIČÍNSKÉ"}]
[null,null,null,null,null,null,null,"Zpět na seznam akčního plánu"]
["Datum","Popis průběhu"]

{"sheet":"ParkovaciPlochyProNavstevniky","index":51,"n_rows":6,"n_cols":8,"rows_kept":6,"cut":false,"hidden":true,"merged":[[0,0,0,7],[3,1,3,6],[4,1,4,6],[5,1,5,6],[2,1,2,6]]}
[{"$f":"UPPER(\"rozšíření parkovacích ploch pro návštěvníky města\")","v":"ROZŠÍŘENÍ PARKOVACÍCH PLOCH PRO NÁVŠTĚVNÍKY MĚSTA"}]
[null,null,null,null,null,null,null,"Zpět na seznam akčního plánu"]
["Datum","Popis průběhu"]
["12/2021","Vytvořena odstavná plocha na ulici Novojičínské"]
["5/2021","Před tělocvičnou nové parkovací místa zrušením chodníku (169 tis.)"]
["6/2021","Úprava a částečné rozšíření odstavné plochy (parkoviště) u Arboreta (223 tis.)"]

{"sheet":"OpravaProstorHasicarna","index":52,"n_rows":3,"n_cols":8,"rows_kept":3,"cut":false,"hidden":true,"merged":[[0,0,0,7]]}
[{"$f":"UPPER(\"oprava prostor před hasičárnou\")","v":"OPRAVA PROSTOR PŘED HASIČÁRNOU"}]
[null,null,null,null,null,null,null,"Zpět na seznam akčního plánu"]
["Datum","Popis průběhu"]

{"sheet":"OpravaMostuBariny","index":53,"n_rows":4,"n_cols":8,"rows_kept":4,"cut":false,"hidden":true,"merged":[[0,0,0,7]]}
[{"$f":"UPPER(\"oprava mostu na Bařinách\")","v":"OPRAVA MOSTU NA BAŘINÁCH"}]
[null,null,null,null,null,null,null,"Zpět na seznam akčního plánu"]
["Datum","Popis průběhu"]
["2019-08-01","Akce doknčena"]

{"sheet":"SvetelnyPrechodBariny","index":54,"n_rows":4,"n_cols":8,"rows_kept":4,"cut":false,"hidden":true,"merged":[[0,0,0,7]]}
[{"$f":"UPPER(\"světelný přechod pro chodce na Bařinách\")","v":"SVĚTELNÝ PŘECHOD PRO CHODCE NA BAŘINÁCH"}]
[null,null,null,null,null,null,null,"Zpět na seznam akčního plánu"]
["Datum","Popis průběhu"]
["2020-11-01","Akce dončena"]

{"sheet":"BezpecnostChodcuKozina","index":55,"n_rows":3,"n_cols":8,"rows_kept":3,"cut":false,"hidden":true,"merged":[[0,0,0,7]]}
[{"$f":"UPPER(\"zvýšení bezpečnosti chodců na komunikaci „Polnička“ - Kozina\")","v":"ZVÝŠENÍ BEZPEČNOSTI CHODCŮ NA KOMUNIKACI „POLNIČKA“ - KOZINA"}]
[null,null,null,null,null,null,null,"Zpět na seznam akčního plánu"]
["Datum","Popis průběhu"]

{"sheet":"PrutahMestem","index":56,"n_rows":4,"n_cols":8,"rows_kept":4,"cut":false,"hidden":true,"merged":[[0,0,0,7],[3,1,3,6],[2,1,2,6]]}
[{"$f":"UPPER(\"dopravně stavební úpravy na průtahu městem\")","v":"DOPRAVNĚ STAVEBNÍ ÚPRAVY NA PRŮTAHU MĚSTEM"}]
[null,null,null,null,null,null,null,"Zpět na seznam akčního plánu"]
["Datum","Popis průběhu"]
["11/2020","Zpracována studie"]

{"sheet":"StetovanaCestaBasta","index":57,"n_rows":3,"n_cols":8,"rows_kept":3,"cut":false,"hidden":true,"merged":[[0,0,0,7]]}
[{"$f":"UPPER(\"oprava štětované cesty - Horní Bašta\")","v":"OPRAVA ŠTĚTOVANÉ CESTY - HORNÍ BAŠTA"}]
[null,null,null,null,null,null,null,"Zpět na seznam akčního plánu"]
["Datum","Popis průběhu"]

{"sheet":"KomunikaceHornychovice","index":58,"n_rows":4,"n_cols":8,"rows_kept":4,"cut":false,"hidden":true,"merged":[[0,0,0,7]]}
[{"$f":"UPPER(\"oprava místní komunikace na Hornychovicích\")","v":"OPRAVA MÍSTNÍ KOMUNIKACE NA HORNYCHOVICÍCH"}]
[null,null,null,null,null,null,null,"Zpět na seznam akčního plánu"]
["Datum","Popis průběhu"]
["2020-10-01","Akce ukončena"]

{"sheet":"OpravaChod.Kom.Drazne","index":59,"n_rows":4,"n_cols":8,"rows_kept":4,"cut":false,"hidden":true,"merged":[[0,0,0,7],[3,1,3,6]]}
[{"$f":"UPPER(\"oprava místních komunikací a chodníků v lokalitě Drážné\")","v":"OPRAVA MÍSTNÍCH KOMUNIKACÍ A CHODNÍKŮ V LOKALITĚ DRÁŽNÉ"}]
[null,null,null,null,null,null,null,"Zpět na seznam akčního plánu"]
["Datum","Popis průběhu"]
["2020-09-01","Akce ukončena a předána"]

{"sheet":"VodovodKanalizaceLibotin","index":60,"n_rows":4,"n_cols":8,"rows_kept":4,"cut":false,"hidden":true,"merged":[[0,0,0,7]]}
[{"$f":"UPPER(\"vodovod a kanalizace v lokalitě Libotín\")","v":"VODOVOD A KANALIZACE V LOKALITĚ LIBOTÍN"}]
[null,null,null,null,null,null,null,"Zpět na seznam akčního plánu"]
["Datum","Popis průběhu"]
["2020-11-01","Akce doknčena včetně zkušebního provozu"]

{"sheet":"KamerovySystemNamestiZS","index":61,"n_rows":3,"n_cols":8,"rows_kept":3,"cut":false,"hidden":true,"merged":[[0,0,0,7]]}
[{"$f":"UPPER(\"kamerový systém - náměstí, u ZŠ\")","v":"KAMEROVÝ SYSTÉM - NÁMĚSTÍ, U ZŠ"}]
[null,null,null,null,null,null,null,"Zpět na seznam akčního plánu"]
["Datum","Popis průběhu"]

{"sheet":"CelkovaRekonstrukceOsvetleni","index":62,"n_rows":6,"n_cols":8,"rows_kept":6,"cut":false,"hidden":true,"merged":[[0,0,0,7],[2,1,2,6],[3,1,3,6],[4,1,4,6],[5,1,5,6]]}
[{"$f":"UPPER(\"celková rekonstrukce historického osvětlení\")","v":"CELKOVÁ REKONSTRUKCE HISTORICKÉHO OSVĚTLENÍ"}]
[null,null,null,null,null,null,null,"Zpět na seznam akčního plánu"]
["Datum","Popis průběhu"]
["12/2019","Stavba dokončena, od 1. 1. 2020 začíná zkušební provoz"]
["4/2020","V rozp.opatření č. 1/2020 vyškrknuto vzhledem k ekon.dopadům pandemie a s tím spojeného poklesu příjmů sdílených daní"]
["12/2021","V roce 2022 se plánuje výměna nebo repase několika luceren v úseku, kde se bude provádět obnova komunikace (průtah městem)"]

{"sheet":"VymenaMobiliareMesta","index":63,"n_rows":6,"n_cols":8,"rows_kept":6,"cut":false,"hidden":true,"merged":[[0,0,0,7],[3,1,3,6],[2,1,2,6],[4,1,4,6],[5,1,5,6]]}
[{"$f":"UPPER(\"výměna mobiliáře města - lavičky, odpadkové koše, vývěsní skříňky, plakátovací plochy\")","v":"VÝMĚNA MOBILIÁŘE MĚSTA - LAVIČKY, ODPADKOVÉ KOŠE, VÝVĚSNÍ SKŘÍŇKY, PLAKÁTOVACÍ PLOCHY"}]
[null,null,null,null,null,null,null,"Zpět na seznam akčního plánu"]
["Datum","Popis průběhu"]
["11-12/2019","Pořízeny nové plakátovací plochy, vývěsní skříňky a 33 odpadkových košů"]
["4/2020","V rozp.opatření č.1/2020 vyšrknuto z důvodu ekon.dopadů pandemie a s tím souvisejícím poklesu příjmů ze sdíl.daní"]
["5-6/2021","V rámci dotace přes MAS Lašsko výměna všech stávajících laviček na náměstí a doplnění 10 ks stojanů na kola"]

{"sheet":"RevitalizaceNarodnihoSadu","index":64,"n_rows":5,"n_cols":8,"rows_kept":5,"cut":false,"hidden":true,"merged":[[0,0,0,7],[3,1,3,6],[2,1,2,6],[4,1,4,6]]}
[{"$f":"UPPER(\"revitalizace Národního sadu\")","v":"REVITALIZACE NÁRODNÍHO SADU"}]
[null,null,null,null,null,null,null,"Zpět na seznam akčního plánu"]
["Datum","Popis průběhu"]
[2017,"PD zpracována"]
[2021,"Výzva by měla být vypsána začátkem roku nebo na jaře 2022. Realizace by byla v 2023."]

{"sheet":"RekonstrukceHrbitova","index":65,"n_rows":5,"n_cols":8,"rows_kept":5,"cut":false,"hidden":true,"merged":[[0,0,0,7],[3,1,3,6],[2,1,2,6],[4,1,4,6]]}
[{"$f":"UPPER(\"rekonstrukce místního hřbitova\")","v":"REKONSTRUKCE MÍSTNÍHO HŘBITOVA"}]
[null,null,null,null,null,null,null,"Zpět na seznam akčního plánu"]
["Datum","Popis průběhu"]
[null,"Probíhá zadávací řízení na realizaci I. etapy Obnovy hřbitova"]
["12/2020","Stavba dokončena 11/2020. Některé práce budou realizovány na jaře 2021 - terénní úpravy, dosetí trávy, stojany na konve"]

{"sheet":"VenkovniNasvetleniTruby","index":66,"n_rows":4,"n_cols":8,"rows_kept":4,"cut":false,"hidden":true,"merged":[[0,0,0,7]]}
[{"$f":"UPPER(\"nové venkovní nasvětlení hradu Trúba\")","v":"NOVÉ VENKOVNÍ NASVĚTLENÍ HRADU TRÚBA"}]
[null,null,null,null,null,null,null,"Zpět na seznam akčního plánu"]
["Datum","Popis průběhu"]
[2017,"PD zpracována"]

{"sheet":"RekonstrukceHistorickehoOsv.","index":67,"n_rows":5,"n_cols":8,"rows_kept":5,"cut":false,"hidden":true,"merged":[[0,0,0,7],[3,1,3,6],[2,1,2,6]]}
[{"$f":"UPPER(\"celková rekonstrukce historického osvětlení \")","v":"CELKOVÁ REKONSTRUKCE HISTORICKÉHO OSVĚTLENÍ "}]
[null,null,null,null,null,null,null,"Zpět na seznam akčního plánu"]
["Datum","Popis průběhu"]
["2019-12-01","Akce probíhá, termín ukončení 12. 12. 2019"]
["2019-12-01","Akce dokončena"]

{"sheet":"OdkanalizovaniHraduTruba","index":68,"n_rows":5,"n_cols":8,"rows_kept":5,"cut":false,"hidden":true,"merged":[[0,0,0,7],[4,1,4,6],[3,1,3,6],[2,1,2,6]]}
[{"$f":"UPPER(\"odkanalizování areálu hradu Trúba - kanalizační přípojka\")","v":"ODKANALIZOVÁNÍ AREÁLU HRADU TRÚBA - KANALIZAČNÍ PŘÍPOJKA"}]
[null,null,null,null,null,null,null,"Zpět na seznam akčního plánu"]
["Datum","Popis průběhu"]
[2018,"PD zpracována"]
[2021,"V případě většího přebytku na konci roku 2021, možná realizace v 2022"]

{"sheet":"RekonstrukcePristupuNaTrubu","index":69,"n_rows":4,"n_cols":8,"rows_kept":4,"cut":false,"hidden":true,"merged":[[0,0,0,8],[3,1,3,6],[2,1,2,6]]}
[{"$f":"UPPER(\"rekonstrukce přístupu na Trúbu z náměstí - oprava schodů a výměna zábradlí, vyčištění od náletů\")","v":"REKONSTRUKCE PŘÍSTUPU NA TRÚBU Z NÁMĚSTÍ - OPRAVA SCHODŮ A VÝMĚNA ZÁBRADLÍ, VYČIŠTĚNÍ OD NÁLETŮ"}]
[null,null,null,null,null,null,null,"Zpět na seznam akčního plánu"]
["Datum","Popis průběhu"]
["2020","Bylo provedeno vyčištění trasy od náletu se souhlasem majitele, natřeno zábradlí."]

{"sheet":"UpravaProstoruNamesti","index":70,"n_rows":3,"n_cols":8,"rows_kept":3,"cut":false,"hidden":true,"merged":[[0,0,0,7]]}
[{"$f":"UPPER(\"zpracování studie - úprava prostoru Náměstí - předlážení, doprava, zeleň\")","v":"ZPRACOVÁNÍ STUDIE - ÚPRAVA PROSTORU NÁMĚSTÍ - PŘEDLÁŽENÍ, DOPRAVA, ZELEŇ"}]
[null,null,null,null,null,null,null,"Zpět na seznam akčního plánu"]
["Datum","Popis průběhu"]

{"sheet":"ElektronickaRezervaceTelocvicny","index":71,"n_rows":6,"n_cols":8,"rows_kept":6,"cut":false,"hidden":true,"merged":[[0,0,0,7],[3,1,3,6],[2,1,2,6],[4,1,4,6],[5,1,5,6]]}
[{"$f":"UPPER(\"elektronická rezervace prostor tělocvičny\")","v":"ELEKTRONICKÁ REZERVACE PROSTOR TĚLOCVIČNY"}]
[null,null,null,null,null,null,null,"Zpět na seznam akčního plánu"]
["Datum","Popis průběhu"]
[null,"Nové webové stránky od společnosti Galileo umožňují i elektronický rezervační systém. Nutno dokoupit tento modul - cena 15 tis.Kč. Plánováno pořídit na jaře 2020 se spuštěním od nového školního roku."]
["5/2020","Objednáno - právě v procesu testování. Bude spuštěno od školního roku 2020/2021"]
["12/2020","Webová aplikace spuštěna  9/2020"]

{"sheet":"KomplexniPrezentaceSpolku","index":72,"n_rows":4,"n_cols":8,"rows_kept":4,"cut":false,"hidden":true,"merged":[[0,0,0,7],[3,1,3,6],[2,1,2,6]]}
[{"$f":"UPPER(\"komplexní prezentace spolků na webových stránkách města\")","v":"KOMPLEXNÍ PREZENTACE SPOLKŮ NA WEBOVÝCH STRÁNKÁCH MĚSTA"}]
[null,null,null,null,null,null,null,"Zpět na seznam akčního plánu"]
["Datum","Popis průběhu"]
[null,"Nové informace k jednotlivým spolkům zaslány v rámci výstavy Štramberk v proměnách času, kdy se spolky na této výstavě prezentují. Tyto informace vloženy na nové webové stránky, které byly spuštěny v 9/2019 - http://www.stramberk.cz/volny-cas/spolky-a-sportovni-oddily/"]

{"sheet":"PravidlaRozdelovaniPrispevku","index":73,"n_rows":5,"n_cols":8,"rows_kept":5,"cut":false,"hidden":true,"merged":[[0,0,0,7],[3,1,3,6],[2,1,2,6],[4,1,4,6]]}
[{"$f":"UPPER(\"zpracování pravidel pro rozdělování finančních příspěvků spolkům a sport.klubům\")","v":"ZPRACOVÁNÍ PRAVIDEL PRO ROZDĚLOVÁNÍ FINANČNÍCH PŘÍSPĚVKŮ SPOLKŮM A SPORT.KLUBŮM"}]
[null,null,null,null,null,null,null,"Zpět na seznam akčního plánu"]
["Datum","Popis průběhu"]
["11/2019","Návrh pravidel předložen komisi kultury, CR, propagace a služeb a komisi sportovní, školství a volnočasových aktivit. V komisích navrženo předložit model rozdělení z dat roku 2019."]
["4/2020","Schváleno ZM dne 29.04.2020"]

{"sheet":"NickNackKelimky","index":74,"n_rows":4,"n_cols":8,"rows_kept":4,"cut":false,"hidden":true,"merged":[[0,0,0,12],[3,1,3,6]]}
[{"$f":"UPPER(\"pořízení nick-nack kelímků s logem města pro veřejné akce pořádané městěm s cílem snížit objem odpadů z jednorázových kelímků\")","v":"POŘÍZENÍ NICK-NACK KELÍMKŮ S LOGEM MĚSTA PRO VEŘEJNÉ AKCE POŘÁDANÉ MĚSTĚM S CÍLEM SNÍŽIT OBJEM ODPADŮ Z JEDNORÁZOVÝCH KELÍMKŮ"}]
[null,null,null,null,null,null,null,"Zpět na seznam akčního plánu"]
["Datum","Popis průběhu"]
["12/2020","Doplnění nick-nacků plánováno v 2021"]

{"sheet":"KotlikoveDotace","index":75,"n_rows":4,"n_cols":8,"rows_kept":4,"cut":false,"hidden":true,"merged":[[0,0,0,7],[3,1,3,6],[2,1,2,6]]}
[{"$f":"UPPER(\"kotlíkové dotace - zapojení se do programu - zprostředkování úvěrů občanům\")","v":"KOTLÍKOVÉ DOTACE - ZAPOJENÍ SE DO PROGRAMU - ZPROSTŘEDKOVÁNÍ ÚVĚRŮ OBČANŮM"}]
[null,null,null,null,null,null,null,"Zpět na seznam akčního plánu"]
["Datum","Popis průběhu"]
[null,"Vzhledem k malému zájmu občanů, nebyla tato služba realizována"]

{"sheet":"InteraktivniMapa","index":76,"n_rows":4,"n_cols":8,"rows_kept":4,"cut":false,"hidden":true,"merged":[[0,0,0,7],[2,1,2,7],[3,1,3,7]]}
[{"$f":"UPPER(\"interaktivní mapa všech stanovišť kontejnerů na odpady na webu města\")","v":"INTERAKTIVNÍ MAPA VŠECH STANOVIŠŤ KONTEJNERŮ NA ODPADY NA WEBU MĚSTA"}]
[null,null,null,null,null,null,null,"Zpět na seznam akčního plánu"]
["Datum","Popis průběhu"]
["10/2019","Panem Pavelkou (referent úseku médií a techniky) ve spolupráci s Mgr. Krysovou (ŽP) zpracována interaktivní mapa kontejnerů na odpady. Podobně je koncipována mapa města Nový Jičín."]

{"sheet":"VybudovaniKomposteru","index":77,"n_rows":3,"n_cols":8,"rows_kept":3,"cut":false,"hidden":true,"merged":[[0,0,0,7]]}
[{"$f":"UPPER(\"analýza možnosti vybudování kompostárny\")","v":"ANALÝZA MOŽNOSTI VYBUDOVÁNÍ KOMPOSTÁRNY"}]
[null,null,null,null,null,null,null,"Zpět na seznam akčního plánu"]
["Datum","Popis průběhu"]

{"sheet":"EvidenceOdpadovychNadob","index":78,"n_rows":6,"n_cols":8,"rows_kept":6,"cut":false,"hidden":true,"merged":[[0,0,0,10],[2,1,2,6],[3,1,3,6],[4,1,4,6],[5,1,5,6]]}
[{"$f":"UPPER(\"zavedení elektronické evidence odpadových nádob a jejich vývozů - opatřit všechy nádoby štítky čárových kódů\")","v":"ZAVEDENÍ ELEKTRONICKÉ EVIDENCE ODPADOVÝCH NÁDOB A JEJICH VÝVOZŮ - OPATŘIT VŠECHY NÁDOBY ŠTÍTKY ČÁROVÝCH KÓDŮ"}]
[null,null,null,null,null,null,null,"Zpět na seznam akčního plánu"]
["Datum","Popis průběhu"]
["3/2020","V březnu RM schválila smlouvu na užívání aplikace ECONIT s firmou JRK. V 1. fázi budou označeny QR kódy všechny nádoby na tříděný odpad (do konce července)  a v 2. fázi všechny popelnice na komunální odpad (na jaře 2021) a vytvoření databáze s tím spojené"]
["6-7/2021","Do poloviny června budou zkompletovány seznamy míst na základě kterých budou vytištěny QR kódy. V létě budou všechny popelnice či nádoby na odpad polepeny QR kódy a od srpna nebo září začne AVE při svozu čtečkami snímat vyvážené nádoby"]
["7-8/2021","Polep popelnic QR kódy realizován. Od září se již monitoruje svoz."]

{"sheet":"EstetizaceMistNaTridenyOdpad","index":79,"n_rows":4,"n_cols":8,"rows_kept":4,"cut":false,"hidden":true,"merged":[[0,0,0,7],[3,1,3,6]]}
[{"$f":"UPPER(\"estetizace míst na tříděný odpad - zpevněná stání pro kontejnery\")","v":"ESTETIZACE MÍST NA TŘÍDĚNÝ ODPAD - ZPEVNĚNÁ STÁNÍ PRO KONTEJNERY"}]
[null,null,null,null,null,null,null,"Zpět na seznam akčního plánu"]
["Datum","Popis průběhu"]
["8-11/2021","ze strany Eko-komu zpracována analýza míst na tříděný odpad, která by měla určit, která místa jsou nejvytíženější, kde upravit počet nádob případně, kde přidat nová místa."]

{"sheet":"ModerniPrezentace","index":80,"n_rows":4,"n_cols":8,"rows_kept":4,"cut":false,"hidden":true,"merged":[[0,0,0,7],[3,1,3,6],[2,1,2,6]]}
[{"$f":"UPPER(\"moderní videoprezentace města\")","v":"MODERNÍ VIDEOPREZENTACE MĚSTA"}]
[null,null,null,null,null,null,null,"Zpět na seznam akčního plánu"]
["Datum","Popis průběhu"]
["2019-12-04","Videoprezentace představena na Galavečeru k 660 letům města. 85% hrazeno z dotace Moravskoslezského kraje"]

{"sheet":"PropagacniMaterialy","index":81,"n_rows":9,"n_cols":8,"rows_kept":9,"cut":false,"hidden":true,"merged":[[7,1,7,6],[8,1,8,6],[6,1,6,6],[0,0,0,7],[3,1,3,6],[2,1,2,6],[5,1,5,6],[4,1,4,6]]}
[{"$f":"UPPER(\"nové propagační předměty a materiály města\")","v":"NOVÉ PROPAGAČNÍ PŘEDMĚTY A MATERIÁLY MĚSTA"}]
[null,null,null,null,null,null,null,"Zpět na seznam akčního plánu"]
["Datum","Popis průběhu"]
[2019,"V roce 2019 pořízeny propagační Flash-disky, otvíráky, bloky, mýdla, pivní sklenice - s novým logem města"]
["10/2019","V rámci dotace z MSK na TIC pořízeny nové tiskoviny (letáky)"]
["11/2019","Nástěnné kalendáře na rok 2020 z fotek přihlášených do fotosoutěže vyhlášené při příležitosti 660 let města a stolní kalendáře z výtvarných prací žáků ZŠ"]
["4/2020","V rámci dotace z MSK na TIC budou pořízeny nové letáky (propagační materiály) na Trúbu. V rozpočtu města je počítáno s pořízením nových propagačních předmětů - sklenice, fotoleporelo v dřevěných deskách, dřevěné podtácky, …"]
["5/2021","V 2020 a 2021 pořízeny propagační předměty s výpalem motivů hlavních dominant města (Pohled na město,Trúba, Kostel sv.J.Nepomuckého, Kostel sv.Kateřiny, Zvonička Bartoloměj, jeskyně Šipka) - dřevěné podtácky, klíčenky, bloky v dřevěných deskách, stojánek na mobil, fotoleporelo města, ..."]
["6/2021","do areálu Trúba budou doplněny nové jednotné informační tabule zpracované v souladu s grafickým manuálem"]

{"sheet":"StrankyMICTrubyMuzeaKnihovny","index":82,"n_rows":6,"n_cols":8,"rows_kept":6,"cut":false,"hidden":true,"merged":[[0,0,0,7],[2,1,2,7],[3,1,3,7],[4,1,4,7],[5,1,5,7]]}
[{"$f":"UPPER(\"nové webové stránky MIC, Trúby, Muzea Zdeňka Buriana a Městské knihovny\")","v":"NOVÉ WEBOVÉ STRÁNKY MIC, TRÚBY, MUZEA ZDEŇKA BURIANA A MĚSTSKÉ KNIHOVNY"}]
[null,null,null,null,null,null,null,"Zpět na seznam akčního plánu"]
["Datum","Popis průběhu"]
["10/2019","Spuštěny nové webové stránky Muzea Zdeňka Buriana (www.zdenekburian.cz)."]
["11/2019","Spuštěny nové webové stránky Městské knihovny (www.knihovna-stramberk.cz) a Městského informačního centra (www.stramberk.info)"]
["4/2020","Spuštěny nové webové stránky Trúby"]

{"sheet":"BankomatNamesti","index":83,"n_rows":5,"n_cols":8,"rows_kept":5,"cut":false,"hidden":true,"merged":[[0,0,0,7],[3,1,3,6],[2,1,2,6],[4,1,4,6]]}
[{"$f":"UPPER(\"zajištění bankomatu na náměstí nebo v těsné blízkosti\")","v":"ZAJIŠTĚNÍ BANKOMATU NA NÁMĚSTÍ NEBO V TĚSNÉ BLÍZKOSTI"}]
[null,null,null,null,null,null,null,"Zpět na seznam akčního plánu"]
["Datum","Popis průběhu"]
[null,"V rámci studie na využití \"'Staré školy\" dostali architekti zadání zapracovat umístění bankomatu do tohoto projektu"]
["12/2020","V projektové dokumentaci projektu \"Komunitní centrum Stará škola\" je bankomat zahrnut "]

{"sheet":"PanelyHorecka","index":84,"n_rows":4,"n_cols":8,"rows_kept":4,"cut":false,"hidden":true,"merged":[[0,0,0,7],[3,1,3,6],[2,1,2,6]]}
["POŘÍZENÍ INFORMATIVNÍCH PANELU NA PARKOVIŠTĚ NA HOREČCE - INFORMACE PRO TURISTY"]
[null,null,null,null,null,null,null,"Zpět na seznam akčního plánu"]
["Datum","Popis průběhu"]
["4/2020","Z důvodu ek.situace spojené s výskytem COVID-19 a poklesu příjmu ze sdílených daní, prozatím pozastaveno."]

{"sheet":"PlanAkci","index":85,"n_rows":4,"n_cols":8,"rows_kept":4,"cut":false,"hidden":true,"merged":[[0,0,0,7],[3,1,3,7],[2,1,2,7]]}
["PLÁN AKCÍ - ROZVOJ ÚSPĚŠNÝCH A TRADIČNÍCH, ROZŠÍŘENÍ O NOVÉ"]
[null,null,null,null,null,null,null,"Zpět na seznam akčního plánu"]
["Datum","Popis průběhu"]
[null,"Seznam kulturních akcí na rok 2020 projednán komisí a následně schválen RM - akce zahrnuty do stolního kalendáře, které byly distribuovány do každé domácnosti. V 2020 plánovány 4 velké kulturní akce města: 15.02. Štramberský masopust (cimbálová muzika, taneční soubor, zabíjačka), 20.06. Dny města, 19.09. Štramberský (š)krpál (přehlídka dechových orchestrů), 26.11. Zpívání u Vánočního stromu - jarmark. Z nových akcí: 28.03. Otevírání studánek na Libotíně, 30.04. Čarodějnice na Trúbě, 06.06.Dětský den na hřišti Bařiny, 03.07. Vítání prázdnin (Národní sad), 7-8/2020 Letní večer na Trúbě, Letní večer na Farní zahradě, Kováři na hradě, "]

{"sheet":"VyuzitiInterPrvku","index":86,"n_rows":3,"n_cols":8,"rows_kept":3,"cut":false,"hidden":true,"merged":[[0,0,0,7]]}
["VYUŽITÍ INTERAKTIVNÍCH PRVKŮ VE VÝSTAVNICTVÍ"]
[null,null,null,null,null,null,null,"Zpět na seznam akčního plánu"]
["Datum","Popis průběhu"]

{"sheet":"ZajisteniExpo","index":87,"n_rows":8,"n_cols":8,"rows_kept":8,"cut":false,"hidden":true,"merged":[[7,1,7,7],[0,0,0,7],[3,1,3,7],[4,1,4,7],[2,1,2,7],[6,1,6,7],[5,1,5,7]]}
["ZAJIŠTĚNÍ PROMĚNNÉ EXPOZICE K HISTORII MĚSTA"]
[null,null,null,null,null,null,null,"Zpět na seznam akčního plánu"]
["Datum","Popis průběhu"]
["8/2019","Pořízeny 4 ks výstavních vitrín - náklady 55 tis.Kč"]
["8/2019","V MNJ existuje obrovský depozitář věnovaný Štramberku. S ředitelkou Muzea Novojičínska paní Dvořáčkovou dohodnuto, že cca každých 6 měsíců budou obměňovat výstavní expozici v 1. patře MZB."]
["9/2019","13.09. vernisáž výstavy k 660 letům města - \"Štramberk v proměnách času\" (od 9/2019-3/2020)"]
[2020,"Plánováno pořízení závěsného systému pro expozici v 1.patře věnovanou historii Štramberka - z důvodu ek.situaci spojené s pandemií a poklesem příjmů ze sdílených daní zatím vyškrtnuto z rozpočtu."]
["12/2020","Pořízen závěsný systém pro expozici 1. patra"]

{"sheet":"PorizovaniVidei","index":88,"n_rows":4,"n_cols":8,"rows_kept":4,"cut":false,"hidden":true,"merged":[[0,0,0,8],[3,1,3,6],[2,1,2,6]]}
["POŘIZOVÁNÍ VIDEOZÁZNAMŮ Z KULTURNÍCH AKCÍ A NÁSLEDNÁ PREZENTACE NA WEBOVÝCH STRÁNKÁCH MĚSTA"]
[null,null,null,null,null,null,null,"Zpět na seznam akčního plánu"]
["Datum","Popis průběhu"]
[null,"Od akce Štramberský masopust (2/2019) jsou jednotlivé akce monitorovány buď zaměstnancem města p.Pavelkou nebo D.Davidem"]

{"sheet":"PasportizaceMobiliare","index":89,"n_rows":5,"n_cols":8,"rows_kept":5,"cut":false,"hidden":true,"merged":[[0,0,0,7],[3,1,3,5],[2,1,2,5],[4,1,4,5]]}
["PASPORTIZACE MOBILIÁŘE, VEŘEJNÉHO OSVĚTLENÍ, KOMUNIKACÍ A CHODNÍKŮ"]
[null,null,null,null,null,null,null,"Zpět na seznam akčního plánu"]
["Datum","Popis průběhu"]
[null,"Byla podána žádost o dotace (v 2019). Dotace nebyla schválena"]
["5/2021","V souvislosti se záměrem přihlásit se do  výzvy na obnovu VO bude zpracován pasport VO firmou Lamberga"]

{"sheet":"VzhledDokumentu","index":90,"n_rows":4,"n_cols":8,"rows_kept":4,"cut":false,"hidden":true,"merged":[[0,0,0,13],[3,1,3,6],[2,1,2,6]]}
["JEDNOTNÝ VZHLED DOKUMENTŮ MĚSTA A MĚSTSKÉHO ÚŘADU - ŠABLONY DLE UPRAVENÉHO GRAFICKÉHO MANUÁLU (VČETNĚ RAZÍTEK, VIZITEK, INF. TABULÍ)"]
[null,null,null,null,null,null,null,"Zpět na seznam akčního plánu"]
["Datum","Popis průběhu"]
["5/2020","Postupně realizováno - všechny nové vyhlášky i nařízení jsou již zpracovány podle grafického manuálu. Připraven i vzor pro korespondenci (dopisy MÚ). "]

{"sheet":"FormPortalObcana","index":91,"n_rows":7,"n_cols":8,"rows_kept":7,"cut":false,"hidden":true,"merged":[[6,1,6,6],[0,0,0,7],[2,1,2,6],[3,1,3,6],[4,1,4,6],[5,1,5,6]]}
["ROZŠÍŘENÍ POČTU ON-LINE FORMULÁŘŮ NA PORTALU OBČANA"]
[null,null,null,null,null,null,null,"Zpět na seznam akčního plánu"]
["Datum","Popis průběhu"]
[null,"Dotace nebyla schválena"]
["5/2021","Portál občana rozšířen o on-line formuláře: žádost o poskytnutí informace dle zákona č. 106/1999, žádost o povolení kácení dřevin, zábor veřejného prostranství"]
["6-7/2021","Plánované další rozšíření on-line formulářů: žádost o abonentní kartu, žádost o rezidentní kartu, žádost o pronájem obecního bytu, oznámení o změně počtu osob v obecním bytě, žádost o potvrzení bezdlužnosti, žádost o poskytnutí příspěvku z MPR, ohlášení k MP z pobytu, vyúčtování MP z pobytu, žádost o vrácení přeplatku za psa"]
["11/2021","Přidány nové on-line formuláře: žádost o abonentní kartu, žádost o rezidentní kartu, žádost o pronájem obecního bytu, žádost o potvrzení bezdlužnosti, oznámení o změně počtu osob obecním bytě, žádost o povolení kácení dřevin rostoucí mimo les, žádost o poskytnutí informací podle 106/1999, žádost o prodloužení nájemní smlouvy, žádost o převedení poplatníku na 1 plátce"]

{"sheet":"NovyWeb","index":92,"n_rows":4,"n_cols":8,"rows_kept":4,"cut":false,"hidden":true,"merged":[[0,0,0,7],[3,1,3,7],[2,1,2,7]]}
[{"$f":"UPPER(\"nové webové stránky města (www.stramberk.cz)\")","v":"NOVÉ WEBOVÉ STRÁNKY MĚSTA (WWW.STRAMBERK.CZ)"}]
[null,null,null,null,null,null,null,"Zpět na seznam akčního plánu"]
["Datum","Popis průběhu"]
["20.09.2019","Spuštěny nové webové stránky města (www.stramberk.cz). Zpracovatelem společnost Galileo Corporation. Grafika vychází z nového grafického manuálu. Návrh stránek konzultován i s odbornou veřejností - A. Goršanovou, D. Davidem. Byl osloven i p. Baďura, bohužel neměl časový prostor."]

{"sheet":"OnlineSmlouvy","index":93,"n_rows":4,"n_cols":8,"rows_kept":4,"cut":false,"hidden":true,"merged":[[0,0,0,9],[3,1,3,6],[2,1,2,6]]}
["ON-LINE SMLOUVY NA PORTÁLU OBČANA - ZVEŘEJŇOVÁNÍ SMLUV (VÝJMA NÁJEMNÍCH SMLUV NA PRONÁJEM BYTŮ)"]
[null,null,null,null,null,null,null,"Zpět na seznam akčního plánu"]
["Datum","Popis průběhu"]
[null,"Dotace nebyla schválena"]

{"sheet":"WebAplikace","index":94,"n_rows":6,"n_cols":8,"rows_kept":6,"cut":false,"hidden":true,"merged":[[2,1,2,7],[0,0,0,9],[3,1,3,7],[4,1,4,7],[5,1,5,7]]}
[{"$f":"UPPER(\"mobilní a webová aplikace - hlášení nedostatků \")","v":"MOBILNÍ A WEBOVÁ APLIKACE - HLÁŠENÍ NEDOSTATKŮ "}]
[null,null,null,null,null,null,null,"Zpět na seznam akčního plánu"]
["Datum","Popis průběhu"]
["12/2018","Zprovozněna na Portále občana tzv. ePodání (webová aplikace) - možno zasílat podněty, nedostatky a připojit různé typy příloh (fotografie, PDF, XLS, DOC …). Takto zaslaný podnět se automaticky zaznamená do Podacího deníku (Spisové služby) úřadu, dostane číslo jednací a autorovi je zasláno e-mailem potvrzení o převzetí zprávy i s kódem, kterým si je možné ověřit, kdo dostal podnět přidělen a v jaké fázi se nachází."]
["5/2020","Zpracovatel nových webových stránek - Galileo - nabízí webovou aplikaci - Hlášení závad za cenu 6,5 tis.Kč bez DPH. Plánováno pořídit v létě 2020"]
["12/2020","Aplikace Hlášení závad na webu města spuštěna 8/2020"]

{"sheet":"ElektronickeHlasovani","index":95,"n_rows":5,"n_cols":8,"rows_kept":5,"cut":false,"hidden":true,"merged":[[0,0,0,7],[2,1,2,7],[3,1,3,7],[4,1,4,7]]}
["ELEKTRONICKÉ HLASOVÁNÍ V ORGÁNECH MĚSTA - RADA MĚSTA, ZASTUPITELSTVO"]
[null,null,null,null,null,null,null,"Zpět na seznam akčního plánu"]
["Datum","Popis průběhu"]
["5/2019","Pořízena licence na modul \"e-Hlasování\". Zatím využíváno na RM. Aktuálně se testuje wifi připojení sálu KD pro použití k zasedání ZM - předpoklad investice do kvalitnější wifi."]
["6/2020","Předpokládaný termín zahájení e-hlasování v ZM od 9/2021"]